[Event "Late-Titled-Tuesday-Blitz-July-09-2024"]
[Site "Chess.com"]
[Date "2024.07.09"]
[Round "8"]
[White "Kyrko_Gamba"]
[Black "PhileKhoob"]
[Result "0-1"]
[WhiteElo "2506"]
[BlackElo "2392"]
[TimeControl "180+1"]
[EndTime "15:29:15 PDT"]
[Termination "PhileKhoob won on time"]

1. Nc3 {[%clk 0:03:00.9]} 1... d5 {[%clk 0:02:54.4]} 2. e4 {[%clk 0:03:00.8]}
2... d4 {[%clk 0:02:53.6]} 3. Nce2 {[%clk 0:03:00.4]} 3... e5 {[%clk 0:02:53.9]}
4. d3 {[%clk 0:02:58.4]} 4... c5 {[%clk 0:02:53.9]} 5. g3 {[%clk 0:02:57.7]}
5... Nc6 {[%clk 0:02:54.1]} 6. Bg2 {[%clk 0:02:58.1]} 6... Be6 {[%clk
0:02:54.3]} 7. f4 {[%clk 0:02:58.4]} 7... Nf6 {[%clk 0:02:50.5]} 8. f5 {[%clk
0:02:52]} 8... Bd7 {[%clk 0:02:50]} 9. h3 {[%clk 0:02:52]} 9... Qc7 {[%clk
0:02:43]} 10. g4 {[%clk 0:02:51.9]} 10... h6 {[%clk 0:02:39.9]} 11. Nf3 {[%clk
0:02:45.4]} 11... O-O-O {[%clk 0:02:35.1]} 12. Bd2 {[%clk 0:02:35.7]} 12... g6
{[%clk 0:02:25.3]} 13. Nh4 {[%clk 0:02:31.3]} 13... gxf5 {[%clk 0:02:15.6]} 14.
Nxf5 {[%clk 0:02:29.7]} 14... Bxf5 {[%clk 0:02:10]} 15. exf5 {[%clk 0:02:28.7]}
15... Bd6 {[%clk 0:02:07.7]} 16. Ng3 {[%clk 0:02:24.5]} 16... Rhe8 {[%clk
0:01:43.5]} 17. Ne4 {[%clk 0:02:23.9]} 17... Nxe4 {[%clk 0:01:39.5]} 18. Bxe4
{[%clk 0:02:24.8]} 18... Be7 {[%clk 0:01:37.5]} 19. Qf3 {[%clk 0:02:09.9]} 19...
Bh4+ {[%clk 0:01:23.5]} 20. Ke2 {[%clk 0:02:09.8]} 20... Bg5 {[%clk 0:01:17.1]}
21. Bxg5 {[%clk 0:02:02.9]} 21... hxg5 {[%clk 0:01:11.7]} 22. h4 {[%clk
0:01:56.9]} 22... gxh4 {[%clk 0:01:10]} 23. Rxh4 {[%clk 0:01:56.5]} 23... Rh8
{[%clk 0:01:10]} 24. Rah1 {[%clk 0:01:55.1]} 24... Rxh4 {[%clk 0:00:55.4]} 25.
Rxh4 {[%clk 0:01:55.4]} 25... f6 {[%clk 0:00:52.3]} 26. Rh6 {[%clk 0:01:49.1]}
26... Nb4 {[%clk 0:00:33.1]} 27. Rxf6 {[%clk 0:01:29.4]} 27... c4 {[%clk
0:00:24.4]} 28. dxc4 {[%clk 0:00:43.8]} 28... Qxc4+ {[%clk 0:00:19]} 29. Kd2
{[%clk 0:00:43.6]} 29... d3 {[%clk 0:00:16.1]} 30. c3 {[%clk 0:00:11.9]} 30...
Qxa2 {[%clk 0:00:11.3]} 31. cxb4 {[%clk 0:00:07.7]} 31... Qxb2+ {[%clk
0:00:11.8]} 32. Ke3 {[%clk 0:00:06.7]} 32... d2 {[%clk 0:00:10.7]} 33. Qd1
{[%clk 0:00:06.6]} 33... Qc1 {[%clk 0:00:03.4]} 34. Bf3 {[%clk 0:00:05.1]} 34...
Qc3+ {[%clk 0:00:02.1]} 35. Kf2 {[%clk 0:00:05.2]} 35... e4 {[%clk 0:00:02.5]}
36. Bxe4 {[%clk 0:00:02.8]} 36... Qxf6 {[%clk 0:00:02.4]} 37. Bf3 {[%clk
0:00:01.9]} 37... Qd4+ {[%clk 0:00:01.6]} 38. Kg2 {[%clk 0:00:02.1]} 38... Qc3
{[%clk 0:00:01.9]} 39. g5 {[%clk 0:00:01.6]} 39... Rg8 {[%clk 0:00:01.7]} 40. g6
{[%clk 0:00:01.8]} 40... Rh8 {[%clk 0:00:02.3]} 41. Bg4 {[%clk 0:00:02]} 41...
Rh4 {[%clk 0:00:02.4]} 42. f6+ {[%clk 0:00:02.3]} 42... Rxg4+ {[%clk 0:00:02.5]}
43. Qxg4+ {[%clk 0:00:02.1]} 43... Kc7 {[%clk 0:00:01]} 44. Qf4+ {[%clk
0:00:02.5]} 44... Kb6 {[%clk 0:00:01.2]} 45. Qd6+ {[%clk 0:00:01.8]} 45... Kb5
{[%clk 0:00:01.6]} 46. Qd5+ {[%clk 0:00:02.2]} 46... Ka4 {[%clk 0:00:01.9]} 47.
Qa2+ {[%clk 0:00:02.1]} 47... Kxb4 {[%clk 0:00:02.5]} 48. Qb1+ {[%clk
0:00:02.4]} 48... Qb3 {[%clk 0:00:02.8]} 49. f7 {[%clk 0:00:03.3]} 49... Qxb1
{[%clk 0:00:02.7]} 50. f8=Q+ {[%clk 0:00:03.7]} 50... Kc3 {[%clk 0:00:03.4]} 51.
Qc5+ {[%clk 0:00:03.6]} 51... Kb2 {[%clk 0:00:03.6]} 52. Qb4+ {[%clk 0:00:03.7]}
52... Kc1 {[%clk 0:00:04.2]} 53. Qc3+ {[%clk 0:00:03.5]} 53... Qc2 {[%clk
0:00:04.3]} 54. Qa1+ {[%clk 0:00:04.1]} 54... Qb1 {[%clk 0:00:04.9]} 55. Qc3+
{[%clk 0:00:04.7]} 55... Kd1 {[%clk 0:00:05.4]} 56. Qf3+ {[%clk 0:00:04.6]}
56... Kc2 {[%clk 0:00:05.9]} 57. Qe4+ {[%clk 0:00:04.6]} 57... Kb2 {[%clk
0:00:05.2]} 58. Qb4+ {[%clk 0:00:04.7]} 58... Ka1 {[%clk 0:00:04.9]} 59. Qc3+
{[%clk 0:00:03.8]} 59... Qb2 {[%clk 0:00:04.6]} 60. Qa5+ {[%clk 0:00:04.3]}
60... Kb1 {[%clk 0:00:04.6]} 61. Qf5+ {[%clk 0:00:04.1]} 61... Kc1 {[%clk
0:00:03.1]} 62. g7 {[%clk 0:00:02.1]} 62... d1=Q+ {[%clk 0:00:02.8]} 63. Kg3
{[%clk 0:00:01.4]} 63... Qg1+ {[%clk 0:00:02.7]} 64. Kh4 {[%clk 0:00:02.3]}
64... Qgh2+ {[%clk 0:00:02.8]} 65. Kg5 {[%clk 0:00:01.6]} 65... Qxg7+ {[%clk
0:00:02.8]} 66. Qg6 {[%clk 0:00:01.9]} 66... Qg3+ {[%clk 0:00:03.2]} 0-1

[Event "Late-Titled-Tuesday-Blitz-July-09-2024"]
[Site "Chess.com"]
[Date "2024.07.09"]
[Round "8"]
[White "LoonsDeKoeben"]
[Black "RebecaJimnz"]
[Result "1/2-1/2"]
[WhiteElo "2432"]
[BlackElo "2306"]
[TimeControl "180+1"]
[EndTime "15:29:17 PDT"]
[Termination "Game drawn by repetition"]

1. e4 {[%clk 0:03:00.9]} 1... g6 {[%clk 0:02:59.4]} 2. d4 {[%clk 0:02:59]} 2...
Bg7 {[%clk 0:02:59.8]} 3. Nc3 {[%clk 0:02:59]} 3... d6 {[%clk 0:03:00.1]} 4. f4
{[%clk 0:02:59]} 4... Nf6 {[%clk 0:03:00.1]} 5. Nf3 {[%clk 0:02:59.4]} 5... a6
{[%clk 0:02:59.1]} 6. Bd3 {[%clk 0:02:59.9]} 6... b5 {[%clk 0:02:59.4]} 7. a3
{[%clk 0:02:57.2]} 7... Bb7 {[%clk 0:02:59.7]} 8. e5 {[%clk 0:02:51.1]} 8...
dxe5 {[%clk 0:02:58.6]} 9. fxe5 {[%clk 0:02:50.7]} 9... Nd5 {[%clk 0:02:58.5]}
10. Nxd5 {[%clk 0:02:49]} 10... Bxd5 {[%clk 0:02:52.2]} 11. O-O {[%clk
0:02:49.2]} 11... O-O {[%clk 0:02:52]} 12. Be3 {[%clk 0:02:42.8]} 12... Nd7
{[%clk 0:02:49.8]} 13. b3 {[%clk 0:02:15.4]} 13... c5 {[%clk 0:02:47.7]} 14. c4
{[%clk 0:01:47.7]} 14... Bxf3 {[%clk 0:02:31.5]} 15. Qxf3 {[%clk 0:01:45.8]}
15... cxd4 {[%clk 0:02:31.8]} 16. Bxd4 {[%clk 0:01:20.9]} 16... Bxe5 {[%clk
0:02:12.5]} 17. Bxe5 {[%clk 0:01:11.1]} 17... Nxe5 {[%clk 0:02:11.7]} 18. Qe3
{[%clk 0:01:11.4]} 18... Qxd3 {[%clk 0:01:25.3]} 19. Qxe5 {[%clk 0:01:10.9]}
19... Qxb3 {[%clk 0:01:25.1]} 20. cxb5 {[%clk 0:01:08.8]} 20... axb5 {[%clk
0:01:22.9]} 21. Qxe7 {[%clk 0:01:03]} 21... Rfe8 {[%clk 0:01:10.3]} 22. Rab1
{[%clk 0:00:47.3]} 22... Rxe7 {[%clk 0:00:23.3]} 23. Rxb3 {[%clk 0:00:46.5]}
23... Rea7 {[%clk 0:00:20.2]} 24. Rff3 {[%clk 0:00:42.1]} 24... Ra4 {[%clk
0:00:16.8]} 25. h3 {[%clk 0:00:33.3]} 25... Kg7 {[%clk 0:00:16]} 26. Kh2 {[%clk
0:00:33.4]} 26... Rb8 {[%clk 0:00:15.4]} 27. Rfd3 {[%clk 0:00:30.1]} 27... b4
{[%clk 0:00:11]} 28. axb4 {[%clk 0:00:30.4]} 28... Raxb4 {[%clk 0:00:10.9]} 29.
Rbc3 {[%clk 0:00:30.3]} 29... R4b7 {[%clk 0:00:09.3]} 30. Rc2 {[%clk 0:00:29.5]}
30... h5 {[%clk 0:00:09.4]} 31. Rf2 {[%clk 0:00:29.3]} 31... Ra7 {[%clk
0:00:08.9]} 32. Rdf3 {[%clk 0:00:28.9]} 32... Rbb7 {[%clk 0:00:09.1]} 33. Rf6
{[%clk 0:00:26.5]} 33... Re7 {[%clk 0:00:08.4]} 34. Kg1 {[%clk 0:00:25.5]} 34...
Ra3 {[%clk 0:00:08.3]} 35. Kh2 {[%clk 0:00:25.5]} 35... Rea7 {[%clk 0:00:07]}
36. R6f4 {[%clk 0:00:24.1]} 36... Re7 {[%clk 0:00:06.7]} 37. Rf6 {[%clk
0:00:24]} 37... Rae3 {[%clk 0:00:05.5]} 38. Kg1 {[%clk 0:00:19.1]} 38... R3e6
{[%clk 0:00:05.3]} 39. R6f3 {[%clk 0:00:17.9]} 39... g5 {[%clk 0:00:04.1]} 40.
Kh2 {[%clk 0:00:18.5]} 40... Kg6 {[%clk 0:00:04.4]} 41. Rf5 {[%clk 0:00:18.7]}
41... f6 {[%clk 0:00:04.6]} 42. R5f3 {[%clk 0:00:18.8]} 42... Rd7 {[%clk
0:00:03.7]} 43. Ra3 {[%clk 0:00:18.7]} 43... Rd5 {[%clk 0:00:03.9]} 44. Ra4
{[%clk 0:00:17.8]} 44... h4 {[%clk 0:00:03.8]} 45. Ra8 {[%clk 0:00:17.5]} 45...
Re7 {[%clk 0:00:01.9]} 46. Rf8 {[%clk 0:00:17.4]} 46... Rd6 {[%clk 0:00:02]} 47.
Rg8+ {[%clk 0:00:17.6]} 47... Rg7 {[%clk 0:00:02.2]} 48. Ra8 {[%clk 0:00:18.4]}
48... Rc6 {[%clk 0:00:01.8]} 49. Rf8 {[%clk 0:00:18.7]} 49... Rf7 {[%clk
0:00:01.6]} 50. Rg8+ {[%clk 0:00:18.4]} 50... Rg7 {[%clk 0:00:02.2]} 51. Re8
{[%clk 0:00:19.2]} 51... Rf7 {[%clk 0:00:02.5]} 52. Rfe2 {[%clk 0:00:19.7]}
52... Rb6 {[%clk 0:00:01.6]} 53. Rg8+ {[%clk 0:00:20.1]} 53... Rg7 {[%clk
0:00:01.6]} 54. Rge8 {[%clk 0:00:21]} 54... Rf7 {[%clk 0:00:02.4]} 55. Rf2
{[%clk 0:00:20.5]} 55... f5 {[%clk 0:00:02.6]} 56. Rc8 {[%clk 0:00:20.2]} 56...
Rff6 {[%clk 0:00:02.9]} 57. Rg8+ {[%clk 0:00:20]} 57... Kf7 {[%clk 0:00:03.3]}
58. Rxg5 {[%clk 0:00:20]} 58... Rb5 {[%clk 0:00:02.7]} 59. Rh5 {[%clk
0:00:20.2]} 59... Rg6 {[%clk 0:00:03]} 60. Rxh4 {[%clk 0:00:18.9]} 60... Kf6
{[%clk 0:00:03.5]} 61. Rh8 {[%clk 0:00:18.7]} 61... Rb7 {[%clk 0:00:03.5]} 62.
Rf8+ {[%clk 0:00:18.8]} 62... Rf7 {[%clk 0:00:03]} 63. Rxf5+ {[%clk 0:00:17.5]}
63... Kxf5 {[%clk 0:00:03]} 64. Rxf7+ {[%clk 0:00:18.4]} 64... Kg5 {[%clk
0:00:03.9]} 65. Rf3 {[%clk 0:00:17.8]} 65... Ra6 {[%clk 0:00:04]} 66. Rg3+
{[%clk 0:00:17.9]} 66... Kh5 {[%clk 0:00:04.4]} 67. Rg4 {[%clk 0:00:17.7]} 67...
Ra5 {[%clk 0:00:04]} 68. Rc4 {[%clk 0:00:17.6]} 68... Rb5 {[%clk 0:00:03.8]} 69.
Kg1 {[%clk 0:00:17]} 69... Rb2 {[%clk 0:00:03.6]} 70. Kh2 {[%clk 0:00:15.6]}
70... Ra2 {[%clk 0:00:03.8]} 71. Rc5+ {[%clk 0:00:14]} 71... Kg6 {[%clk
0:00:03.6]} 72. h4 {[%clk 0:00:13.4]} 72... Ra3 {[%clk 0:00:03.3]} 73. g3 {[%clk
0:00:11.8]} 73... Kh6 {[%clk 0:00:03.7]} 74. Kh3 {[%clk 0:00:12.1]} 74... Kg6
{[%clk 0:00:04.2]} 75. Rc6+ {[%clk 0:00:12.2]} 75... Kh5 {[%clk 0:00:04.4]} 76.
Rc5+ {[%clk 0:00:10.8]} 76... Kg6 {[%clk 0:00:04.3]} 77. Kg4 {[%clk 0:00:10.9]}
77... Ra4+ {[%clk 0:00:04.3]} 78. Kh3 {[%clk 0:00:11.5]} 78... Ra3 {[%clk
0:00:04.8]} 1/2-1/2

[Event "Late-Titled-Tuesday-Blitz-July-09-2024"]
[Site "Chess.com"]
[Date "2024.07.09"]
[Round "8"]
[White "duone"]
[Black "Chessmatus"]
[Result "0-1"]
[WhiteElo "2328"]
[BlackElo "2525"]
[TimeControl "180+1"]
[EndTime "15:29:22 PDT"]
[Termination "Chessmatus won on time"]

1. d4 {[%clk 0:03:00.9]} 1... Nf6 {[%clk 0:02:59.8]} 2. Bf4 {[%clk 0:02:58.7]}
2... g6 {[%clk 0:02:57.4]} 3. e3 {[%clk 0:02:57.3]} 3... Bg7 {[%clk 0:02:56.3]}
4. c3 {[%clk 0:02:54.7]} 4... d6 {[%clk 0:02:56.7]} 5. Nd2 {[%clk 0:02:54.6]}
5... O-O {[%clk 0:02:57.4]} 6. Bd3 {[%clk 0:02:54.8]} 6... c5 {[%clk 0:02:57.6]}
7. Ngf3 {[%clk 0:02:54.7]} 7... Nc6 {[%clk 0:02:57.6]} 8. h3 {[%clk 0:02:54.7]}
8... Qb6 {[%clk 0:02:49.3]} 9. Qc2 {[%clk 0:02:50.7]} 9... a6 {[%clk 0:02:44.4]}
10. O-O {[%clk 0:02:50.1]} 10... Be6 {[%clk 0:02:36.9]} 11. Ng5 {[%clk
0:02:43.3]} 11... Bd7 {[%clk 0:02:31.4]} 12. Nge4 {[%clk 0:02:36.7]} 12... Nxe4
{[%clk 0:02:26.4]} 13. Nxe4 {[%clk 0:02:35.2]} 13... Rac8 {[%clk 0:02:12.6]} 14.
Qe2 {[%clk 0:02:25.6]} 14... Qd8 {[%clk 0:01:41]} 15. Rfd1 {[%clk 0:02:21]}
15... b5 {[%clk 0:01:37]} 16. dxc5 {[%clk 0:02:13.1]} 16... d5 {[%clk
0:01:37.3]} 17. Nd2 {[%clk 0:02:09]} 17... e5 {[%clk 0:01:37.3]} 18. Bg3 {[%clk
0:02:07.1]} 18... Qe7 {[%clk 0:01:36.8]} 19. b4 {[%clk 0:02:06]} 19... e4 {[%clk
0:01:25.7]} 20. Bc2 {[%clk 0:01:59.2]} 20... Bxc3 {[%clk 0:01:25.2]} 21. Bd6
{[%clk 0:01:59.7]} 21... Qg5 {[%clk 0:01:24.6]} 22. Bxf8 {[%clk 0:01:57.8]}
22... Rxf8 {[%clk 0:00:43.3]} 23. f4 {[%clk 0:01:53.2]} 23... exf3 {[%clk
0:00:31.8]} 24. Nxf3 {[%clk 0:01:52.9]} 24... Qh5 {[%clk 0:00:25.9]} 25. Rab1
{[%clk 0:01:49.8]} 25... Re8 {[%clk 0:00:20.5]} 26. a3 {[%clk 0:01:44.6]} 26...
Qh6 {[%clk 0:00:05.7]} 27. Rxd5 {[%clk 0:01:41.2]} 27... Rxe3 {[%clk 0:00:06.3]}
28. Qf2 {[%clk 0:01:35.9]} 28... Be6 {[%clk 0:00:06.7]} 29. Rd6 {[%clk
0:01:35.6]} 29... Ne5 {[%clk 0:00:04.5]} 30. Nxe5 {[%clk 0:01:34.4]} 30... Bxe5
{[%clk 0:00:04.7]} 31. Rd8+ {[%clk 0:01:34.2]} 31... Kg7 {[%clk 0:00:05.3]} 32.
Re1 {[%clk 0:01:29.6]} 32... Rxe1+ {[%clk 0:00:01.9]} 33. Qxe1 {[%clk
0:01:29.6]} 33... Qf4 {[%clk 0:00:02.6]} 34. g3 {[%clk 0:01:11.5]} 34... Qf6
{[%clk 0:00:03]} 35. Rd3 {[%clk 0:00:48.6]} 35... Bxh3 {[%clk 0:00:03.4]} 36.
Qf2 {[%clk 0:00:45.6]} 36... Bf5 {[%clk 0:00:03.6]} 37. Rd2 {[%clk 0:00:41]}
37... Qg5 {[%clk 0:00:03.7]} 38. Bxf5 {[%clk 0:00:40.4]} 38... Bxg3 {[%clk
0:00:04.3]} 39. Qg2 {[%clk 0:00:34.7]} 39... Qe3+ {[%clk 0:00:05]} 40. Kh1
{[%clk 0:00:31.8]} 40... Qe1+ {[%clk 0:00:04.2]} 41. Qg1 {[%clk 0:00:32.3]}
41... Qxd2 {[%clk 0:00:04.5]} 42. Qxg3 {[%clk 0:00:32.3]} 42... Qd1+ {[%clk
0:00:02.6]} 43. Kh2 {[%clk 0:00:30.6]} 43... Qh5+ {[%clk 0:00:02.6]} 44. Kg2
{[%clk 0:00:30.3]} 44... Qxf5 {[%clk 0:00:02.7]} 45. Qc3+ {[%clk 0:00:29.4]}
45... Kg8 {[%clk 0:00:03.3]} 46. c6 {[%clk 0:00:30]} 46... Qd5+ {[%clk
0:00:03.3]} 47. Kh2 {[%clk 0:00:29.6]} 47... Qd6+ {[%clk 0:00:03.4]} 48. Kg2
{[%clk 0:00:29.8]} 48... Qc7 {[%clk 0:00:04]} 49. Qc5 {[%clk 0:00:30]} 49... h5
{[%clk 0:00:04.3]} 50. Qd5 {[%clk 0:00:30.4]} 50... h4 {[%clk 0:00:04.2]} 51.
Qd7 {[%clk 0:00:30.6]} 51... Qg3+ {[%clk 0:00:04.9]} 52. Kh1 {[%clk 0:00:30.1]}
52... h3 {[%clk 0:00:05.1]} 53. Qd8+ {[%clk 0:00:20.2]} 53... Kh7 {[%clk
0:00:05.3]} 54. Qd2 {[%clk 0:00:20.2]} 54... Qf3+ {[%clk 0:00:05.6]} 55. Kh2
{[%clk 0:00:20.6]} 55... Qxc6 {[%clk 0:00:06]} 56. Kxh3 {[%clk 0:00:20.6]} 56...
Qe6+ {[%clk 0:00:06.6]} 57. Kh2 {[%clk 0:00:20.8]} 57... Qe5+ {[%clk 0:00:06.6]}
58. Kh3 {[%clk 0:00:20.5]} 58... Qf5+ {[%clk 0:00:06.8]} 59. Kh2 {[%clk
0:00:20.7]} 59... Qe5+ {[%clk 0:00:06.5]} 60. Kh3 {[%clk 0:00:21]} 60... Qe4
{[%clk 0:00:06]} 61. Qc3 {[%clk 0:00:18.4]} 61... Qf5+ {[%clk 0:00:05.4]} 62.
Kh2 {[%clk 0:00:18.6]} 62... Qf4+ {[%clk 0:00:05.8]} 63. Kh3 {[%clk 0:00:18.5]}
63... Qe4 {[%clk 0:00:05.6]} 64. Qf6 {[%clk 0:00:17.4]} 64... Qf5+ {[%clk
0:00:05.8]} 65. Qxf5 {[%clk 0:00:17.6]} 65... gxf5 {[%clk 0:00:06.7]} 66. Kg3
{[%clk 0:00:18.4]} 66... Kg6 {[%clk 0:00:07.4]} 67. Kf4 {[%clk 0:00:19.3]} 67...
Kf6 {[%clk 0:00:08.3]} 68. Kf3 {[%clk 0:00:13.2]} 68... Ke5 {[%clk 0:00:09.2]}
69. Ke3 {[%clk 0:00:14.1]} 69... f4+ {[%clk 0:00:09.7]} 70. Kd3 {[%clk
0:00:14.1]} 70... Kf5 {[%clk 0:00:10.6]} 71. Kd4 {[%clk 0:00:12.5]} 71... f3
{[%clk 0:00:11.3]} 72. Ke3 {[%clk 0:00:13]} 72... Kg4 {[%clk 0:00:12]} 73. Kf2
{[%clk 0:00:11.7]} 73... Kf4 {[%clk 0:00:12.9]} 74. a4 {[%clk 0:00:11.1]} 74...
bxa4 {[%clk 0:00:12.7]} 75. b5 {[%clk 0:00:12]} 75... axb5 {[%clk 0:00:12.3]}
76. Kg1 {[%clk 0:00:12.9]} 76... a3 {[%clk 0:00:13.1]} 77. Kh2 {[%clk
0:00:13.8]} 77... a2 {[%clk 0:00:14]} 78. Kh3 {[%clk 0:00:13.2]} 78... a1=Q
{[%clk 0:00:14.3]} 79. Kh2 {[%clk 0:00:06.7]} 79... Qb1 {[%clk 0:00:15.2]} 0-1

[Event "Late-Titled-Tuesday-Blitz-July-09-2024"]
[Site "Chess.com"]
[Date "2024.07.09"]
[Round "8"]
[White "Crazy_girl99"]
[Black "Richardmaster"]
[Result "0-1"]
[WhiteElo "2659"]
[BlackElo "2533"]
[TimeControl "180+1"]
[EndTime "15:29:23 PDT"]
[Termination "Richardmaster won by checkmate"]

1. c4 {[%clk 0:02:44.9]} 1... c5 {[%clk 0:02:55.1]} 2. Nc3 {[%clk 0:02:44.8]}
2... Nc6 {[%clk 0:02:50.2]} 3. g3 {[%clk 0:02:45]} 3... g6 {[%clk 0:02:49.6]} 4.
Bg2 {[%clk 0:02:45.3]} 4... Bg7 {[%clk 0:02:49.6]} 5. Nf3 {[%clk 0:02:45.1]}
5... e5 {[%clk 0:02:47.1]} 6. O-O {[%clk 0:02:44.8]} 6... d6 {[%clk 0:02:45.8]}
7. d3 {[%clk 0:02:45.1]} 7... Nge7 {[%clk 0:02:44.5]} 8. h4 {[%clk 0:02:40.3]}
8... h6 {[%clk 0:02:39.2]} 9. a3 {[%clk 0:02:37.5]} 9... a5 {[%clk 0:02:36.8]}
10. Rb1 {[%clk 0:02:37.4]} 10... Be6 {[%clk 0:02:32.2]} 11. e3 {[%clk
0:02:36.7]} 11... O-O {[%clk 0:02:15.4]} 12. Nd2 {[%clk 0:02:36.4]} 12... d5
{[%clk 0:02:13.8]} 13. cxd5 {[%clk 0:02:33.4]} 13... Nxd5 {[%clk 0:02:14.7]} 14.
Nde4 {[%clk 0:02:32.5]} 14... b6 {[%clk 0:02:08.9]} 15. Qa4 {[%clk 0:02:23.2]}
15... Nce7 {[%clk 0:02:06.1]} 16. Rd1 {[%clk 0:02:16.8]} 16... f5 {[%clk
0:01:56.3]} 17. Nd2 {[%clk 0:02:16.2]} 17... Rb8 {[%clk 0:01:36.3]} 18. Nc4
{[%clk 0:02:12.6]} 18... Nxc3 {[%clk 0:00:57.5]} 19. bxc3 {[%clk 0:02:11.6]}
19... Bd7 {[%clk 0:00:50.8]} 20. Qb3 {[%clk 0:02:05.7]} 20... a4 {[%clk
0:00:43.5]} 21. Qc2 {[%clk 0:01:52.7]} 21... b5 {[%clk 0:00:34.3]} 22. Nd2
{[%clk 0:01:44.6]} 22... Bc6 {[%clk 0:00:30.4]} 23. Bxc6 {[%clk 0:01:26.4]}
23... Nxc6 {[%clk 0:00:31.3]} 24. c4 {[%clk 0:01:26.7]} 24... b4 {[%clk
0:00:22.5]} 25. Qxa4 {[%clk 0:01:25.6]} 25... Qc7 {[%clk 0:00:18]} 26. Nb3
{[%clk 0:01:20.5]} 26... Ne7 {[%clk 0:00:09]} 27. Bd2 {[%clk 0:01:03.7]} 27...
f4 {[%clk 0:00:05.8]} 28. e4 {[%clk 0:00:54]} 28... fxg3 {[%clk 0:00:05.7]} 29.
fxg3 {[%clk 0:00:54.5]} 29... Qc8 {[%clk 0:00:03.2]} 30. Kg2 {[%clk 0:00:51.5]}
30... Qg4 {[%clk 0:00:02.8]} 31. Rf1 {[%clk 0:00:51.1]} 31... Qe2+ {[%clk
0:00:02.7]} 32. Kg1 {[%clk 0:00:49]} 32... Qxd3 {[%clk 0:00:03.6]} 33. Kg2
{[%clk 0:00:37.5]} 33... Qxe4+ {[%clk 0:00:03.2]} 34. Kh3 {[%clk 0:00:29.1]}
34... Nf5 {[%clk 0:00:04.1]} 35. Nxc5 {[%clk 0:00:22.9]} 35... Qxc4 {[%clk
0:00:04.2]} 36. Qb3 {[%clk 0:00:21.8]} 36... Qxb3 {[%clk 0:00:03.2]} 37. Rxb3
{[%clk 0:00:20.7]} 37... bxa3 {[%clk 0:00:03.8]} 38. Rxa3 {[%clk 0:00:21.2]}
38... Rbc8 {[%clk 0:00:02.7]} 39. Ne4 {[%clk 0:00:21.5]} 39... Rfd8 {[%clk
0:00:03]} 40. Ba5 {[%clk 0:00:20.9]} 40... Rd7 {[%clk 0:00:01.8]} 41. g4 {[%clk
0:00:18.2]} 41... Nd4 {[%clk 0:00:02.1]} 42. Nf6+ {[%clk 0:00:18.6]} 42... Bxf6
{[%clk 0:00:02.4]} 43. Rxf6 {[%clk 0:00:19.3]} 43... Kg7 {[%clk 0:00:03]} 44. g5
{[%clk 0:00:19.2]} 44... hxg5 {[%clk 0:00:02.8]} 45. hxg5 {[%clk 0:00:20.1]}
45... Rh8+ {[%clk 0:00:01.8]} 46. Kg2 {[%clk 0:00:20.3]} 46... Nf5 {[%clk
0:00:01.6]} 47. Be1 {[%clk 0:00:20.1]} 47... Rh5 {[%clk 0:00:01.6]} 48. Rfa6
{[%clk 0:00:18.7]} 48... Rxg5+ {[%clk 0:00:01.5]} 49. Kf1 {[%clk 0:00:19.2]}
49... Rg4 {[%clk 0:00:01.9]} 50. Ra7 {[%clk 0:00:17.9]} 50... Rf4+ {[%clk
0:00:02.4]} 51. Ke2 {[%clk 0:00:17.8]} 51... Rxa7 {[%clk 0:00:03.3]} 52. Rxa7+
{[%clk 0:00:17.8]} 52... Kf6 {[%clk 0:00:03.7]} 53. Bd2 {[%clk 0:00:18.4]} 53...
Re4+ {[%clk 0:00:03]} 54. Kd3 {[%clk 0:00:18.4]} 54... Rd4+ {[%clk 0:00:03.4]}
55. Ke2 {[%clk 0:00:18.9]} 55... Nd6 {[%clk 0:00:03.2]} 56. Ra6 {[%clk
0:00:18.5]} 56... Kf5 {[%clk 0:00:03.5]} 57. Be3 {[%clk 0:00:18.3]} 57... Rd5
{[%clk 0:00:03.9]} 58. Ra8 {[%clk 0:00:16.5]} 58... g5 {[%clk 0:00:03.7]} 59.
Rf8+ {[%clk 0:00:16.5]} 59... Kg4 {[%clk 0:00:03.7]} 60. Rg8 {[%clk 0:00:16.5]}
60... Ne4 {[%clk 0:00:04.2]} 61. Re8 {[%clk 0:00:12.8]} 61... Nc3+ {[%clk
0:00:04.2]} 62. Ke1 {[%clk 0:00:12]} 62... e4 {[%clk 0:00:05.1]} 63. Bd2 {[%clk
0:00:10.3]} 63... Rd3 {[%clk 0:00:02.6]} 64. Bxc3 {[%clk 0:00:09]} 64... Rxc3
{[%clk 0:00:03.5]} 65. Rxe4+ {[%clk 0:00:09]} 65... Kf3 {[%clk 0:00:04]} 66. Re8
{[%clk 0:00:08.6]} 66... Re3+ {[%clk 0:00:03.9]} 67. Rxe3+ {[%clk 0:00:08]}
67... Kxe3 {[%clk 0:00:04.8]} 68. Kf1 {[%clk 0:00:08.4]} 68... Kf3 {[%clk
0:00:05.4]} 69. Kg1 {[%clk 0:00:08.7]} 69... Kg3 {[%clk 0:00:06.3]} 70. Kf1
{[%clk 0:00:09.3]} 70... Kh2 {[%clk 0:00:06.7]} 71. Kf2 {[%clk 0:00:09.4]} 71...
g4 {[%clk 0:00:07.6]} 72. Ke3 {[%clk 0:00:09.8]} 72... g3 {[%clk 0:00:08.5]} 73.
Ke4 {[%clk 0:00:10.6]} 73... g2 {[%clk 0:00:09.4]} 74. Ke5 {[%clk 0:00:10.9]}
74... g1=Q {[%clk 0:00:10.3]} 75. Ke6 {[%clk 0:00:11.5]} 75... Qe3+ {[%clk
0:00:09.9]} 76. Kf7 {[%clk 0:00:11.7]} 76... Kg3 {[%clk 0:00:10.8]} 77. Kf6
{[%clk 0:00:11.8]} 77... Kg4 {[%clk 0:00:11.3]} 78. Kf7 {[%clk 0:00:12.3]} 78...
Qb6 {[%clk 0:00:11.8]} 79. Ke7 {[%clk 0:00:12.4]} 79... Kf5 {[%clk 0:00:12.7]}
80. Kd7 {[%clk 0:00:13.3]} 80... Ke5 {[%clk 0:00:12.7]} 81. Ke7 {[%clk
0:00:13.5]} 81... Qb7+ {[%clk 0:00:13.1]} 82. Kf8 {[%clk 0:00:13.8]} 82... Kf6
{[%clk 0:00:13.5]} 83. Kg8 {[%clk 0:00:14.7]} 83... Qg7# {[%clk 0:00:13.7]} 0-1